fUSD/lending_fUSD_20251222
["ID","MTS","AMOUNT","RATE_DAILY","PERIOD"]
[399525031,1766436653096,-500.0,0.00019293,2]
[399525032,1766436653106,-1000.0,0.00019293,2]
[399525033,1766436653120,-1000.0,0.00019293,2]
[399525034,1766436653130,-1000.0,0.00019293,2]
[399525035,1766436653140,-1000.0,0.00019293,2]
[399525036,1766436653150,-498.88830841,0.00019293,2]
[399525037,1766436653162,-1000.0,0.00019293,2]
[399525038,1766436653172,-1000.0,0.00019293,2]
[399525039,1766436653183,-1000.0,0.00019293,2]
[399525040,1766436653194,-500.0,0.00019293,2]
[399525041,1766436653204,-1000.0,0.00019293,2]
[399525042,1766436653215,-1000.0,0.00019293,2]
[399525043,1766436653225,-1000.0,0.00019293,2]
[399525044,1766436653235,-1000.0,0.00019293,2]
[399525045,1766436653245,-1000.0,0.00019293,2]
[399525046,1766436653255,-169.31135743,0.00019293,2]
[399525047,1766436653265,-200.0,0.00019411,2]
[399525048,1766436653275,-200.0,0.00019411,2]
[399525049,1766436653285,-500.0,0.00019411,2]
[399525050,1766436653294,-544.45,0.00019427,2]
[399525051,1766436653305,-556.25,0.00019427,2]
[399525052,1766436653315,-150.30615582,0.00019435,5]
[399525053,1766436653325,-713.97283296,0.00019437,2]
[399525054,1766436653335,-1000.0,0.00019438,2]
[399525055,1766436653345,-423.11,0.00019486,2]
[399525056,1766436653355,-1000.0,0.00019619,2]
[399525057,1766436653366,-544.45,0.00019701,2]
[399525058,1766436653376,-556.25,0.00019701,2]
[399525059,1766436653387,-615.67631493,0.00019726,2]
[399525060,1766436653397,-300.0,0.00019748,2]
[399525061,1766436653406,-40126.2651197,0.00019749,2]
[399525062,1766436653417,-151.84826967,0.00019768,2]
[399525063,1766436653427,-514.96485499,0.00019841,2]
[399525064,1766436653437,-308.61264672,0.00019841,2]
[399525065,1766436653447,-1638.57602215,0.00019841,2]
[399525066,1766436653456,-500.0,0.00019841,2]
[399525067,1766436653466,-1500.0,0.00019841,2]
[399525068,1766436653476,-715.12,0.00019863,2]
[399525069,1766436653489,-2972.2,0.00019864,2]
[399525070,1766436653500,-200.0,0.00019959,2]
[399525071,1766436653510,-200.0,0.00019959,2]
[399525072,1766436653520,-740.38982778,0.00019985,2]
[399525073,1766436653531,-17622.69666976,0.0002,5]
[399525074,1766436653542,-500.0,0.0002,2]
[399525075,1766436653552,-1000.0,0.0002,7]
[399525076,1766436653562,-500.0,0.00020001,2]
[399525077,1766436653572,-500.0,0.00020002,2]
[399525078,1766436653581,-499.9999,0.00020003,2]
[399525079,1766436653591,-8720.0,0.0002001,2]
[399525080,1766436653602,-1000.0,0.00020116,2]
[399525081,1766436653612,-1000.0,0.00020187,2]
[399525082,1766436653623,-423.11,0.00020235,2]
[399525083,1766436653633,-309.29654756,0.00020256,2]
[399525084,1766436653643,-151.0,0.00020256,2]
[399525085,1766436653653,-500.0,0.00020389,2]
[399525086,1766436653663,-601.0,0.000204,2]
[399525087,1766436653673,-975.0,0.000204,2]
[399525088,1766436653683,-305.0,0.000204,2]
[399525089,1766436653693,-200.0,0.000204,2]
[399525090,1766436653703,-5765.0563739,0.00020419,2]
[399525091,1766436653713,-5041.8955319,0.00020419,2]
[399525092,1766436653723,-598.34669379,0.00020428,2]
[399525093,1766436653734,-223.0315306,0.00020504,2]
[399525094,1766436653745,-200.0,0.00020507,2]
[399525095,1766436653755,-500.0,0.00020521,2]
[399525096,1766436653765,-767.7842514,0.00020533,2]
[399525097,1766436653775,-192.0,0.00020548,2]
[399525098,1766436653785,-21441.69,0.00020548,2]
[399525099,1766436653795,-1024.4900209,0.00020567,2]
[399525100,1766436653806,-22573.79490418,0.000207,2]
[399525101,1766436653816,-2000.0,0.000207,2]
[399525102,1766436653826,-1000.0,0.00020795,2]
[399525103,1766436653836,-20000.0,0.00021,2]
[399525104,1766436653846,-160.0,0.00021,7]
[399525105,1766436653858,-350.0,0.00021,2]
[399525106,1766436653868,-2972.2,0.00021006,2]
[399525107,1766436653881,-200.0,0.00021055,2]
[399525108,1766436653891,-5623.26,0.00021068,2]
[399525109,1766436653902,-796.19226871,0.00021081,2]
[399525110,1766436653912,-151.84826967,0.00021416,2]
[399525111,1766436653922,-591.80368577,0.0002146,2]
[399525112,1766436653932,-324.94669548,0.000215,21]
[399525113,1766436653942,-1326.0,0.000215,2]
[399525114,1766436653952,-612.0,0.000215,2]
[399525115,1766436653962,-3457.0,0.000215,2]
[399525116,1766436653972,-1609.0,0.000215,2]
[399525117,1766436653982,-1262.0,0.000215,2]
[399525118,1766436653991,-518.0,0.000215,2]
[399525119,1766436654001,-1198.0,0.000215,2]
[399525120,1766436654010,-911.0,0.000215,2]
[399525121,1766436654020,-2429.0,0.000215,2]
[399525122,1766436654030,-564.0,0.000215,2]
[399525123,1766436654040,-1097.4657792,0.0002156,5]
[399525124,1766436654050,-1010.53148123,0.0002156,5]
[399525125,1766436654060,-1030.07406443,0.0002156,5]
[399525126,1766436654070,-1119.44138265,0.0002156,5]
[399525127,1766436654080,-1125.88675106,0.0002156,5]
[399525128,1766436654090,-1027.15957722,0.0002156,5]
[399525129,1766436654100,-1005.10085292,0.0002156,5]
[399525130,1766436654112,-1035.31854874,0.0002156,5]
[399525131,1766436654123,-1100.12959556,0.0002156,5]
[399525132,1766436654134,-1023.86815162,0.0002156,5]
[399525133,1766436654144,-1007.80229101,0.0002156,5]
[399525134,1766436654155,-1147.90693757,0.0002156,5]
[399525135,1766436654165,-1107.55323538,0.0002156,5]
[399525136,1766436654175,-1149.65354412,0.0002156,5]
[399525137,1766436654184,-1063.70800376,0.0002156,5]
[399525138,1766436654196,-1089.65752366,0.0002156,5]
[399525139,1766436654208,-1102.69584614,0.0002156,5]
[399525140,1766436654218,-1102.31741435,0.0002156,5]
[399525141,1766436654228,-1063.54362528,0.0002156,5]
[399525142,1766436654238,-1034.32511069,0.0002156,5]
[399525143,1766436654249,-1091.96898295,0.0002156,5]
[399525144,1766436654259,-1104.49682811,0.0002156,5]
[399525145,1766436654271,-1012.68188381,0.0002156,5]
[399525146,1766436654281,-1082.44208911,0.0002156,5]
[399525147,1766436654292,-1011.09772886,0.0002156,5]
[399525148,1766436654301,-1091.58008598,0.0002156,5]
[399525149,1766436654312,-1026.19924121,0.0002156,5]
[399525150,1766436654322,-1062.96970026,0.0002156,5]
[399525151,1766436654333,-1469.25464106,0.0002156,5]
[399525152,1766436654343,-299.21427027,0.00021603,2]
[399525153,1766436654354,-320.74051982,0.00021625,2]
[399525154,1766436654364,-151.0,0.00021625,2]
[399525155,1766436654652,-621.78829552,0.00021627,2]
[399525156,1766436654662,-666.72878,0.00021627,2]
[399525157,1766436654671,-775.47832561,0.00021627,2]
[399525158,1766436654680,-825.65138265,0.00021629,2]
[399525159,1766436654689,-150.0,0.0002178,2]
[399525160,1766436654699,-715.12,0.00021917,2]
[399525161,1766436654708,-715.12,0.00021917,2]
[399525162,1766436654716,-715.12,0.00021917,2]
[399525163,1766436654725,-715.12,0.00021917,2]
[399525164,1766436654735,-715.18695213,0.00021917,2]
[399525165,1766436654744,-3001.49,0.00021918,2]
[399525166,1766436654754,-5000.0,0.00021918,2]
[399525167,1766436654763,-151.0,0.00021918,2]
[399525168,1766436654772,-151.0,0.00021918,2]
[399525169,1766436654781,-151.0,0.00021918,2]
[399525170,1766436654790,-151.0,0.00021918,2]
[399525171,1766436654799,-151.0,0.00021918,2]
[399525172,1766436654808,-169.964532,0.00021918,2]
[399525173,1766436654817,-155.953396,0.00021918,2]
[399525174,1766436654827,-500.0,0.00021918,2]
[399525175,1766436654836,-500.0,0.00021918,2]
[399525176,1766436654846,-500.0,0.00021918,2]
[399525177,1766436654855,-500.0,0.00021918,2]
[399525178,1766436654864,-500.0,0.00021918,2]
[399525179,1766436654873,-500.0,0.00021918,2]
[399525180,1766436654882,-500.0,0.00021918,2]
[399525181,1766436654891,-500.0,0.00021918,2]
[399525182,1766436654900,-500.0,0.00021918,2]
[399525183,1766436654909,-500.0,0.00021918,2]
[399525184,1766436654919,-550.72158324,0.00021918,2]
[399525185,1766436654928,-500.0,0.00021918,2]
[399525186,1766436654937,-500.0,0.00021918,2]
[399525187,1766436654951,-151.51923746,0.00021918,2]
[399525188,1766436654965,-700.0,0.0002197,2]
[399525189,1766436654974,-700.0,0.0002197,2]
[399525190,1766436654983,-500.0,0.0002197,2]
[399525191,1766436654992,-700.0,0.0002197,2]
[399525192,1766436655001,-500.0,0.0002197,2]
[399525193,1766436655010,-700.0,0.0002197,2]
[399525194,1766436655019,-500.0,0.0002197,2]
[399525195,1766436655029,-1104.69883036,0.0002197,2]
[399525196,1766436655038,-500.0,0.0002197,2]
[399525197,1766436655048,-600.7968971,0.0002197,2]
[399525198,1766436655057,-232.9120576,0.00021973,2]
[399525199,1766436655067,-300.0,0.00021999,2]
[399525200,1766436655076,-800.0,0.00022,8]
[399525201,1766436655085,-800.0,0.00022,8]
[399525202,1766436655095,-800.0,0.00022,8]
[399525203,1766436655105,-800.0,0.00022,8]
[399525204,1766436655117,-800.0,0.00022,8]
[399525205,1766436655127,-800.0,0.00022,8]
[399525206,1766436655136,-800.0,0.00022,8]
[399525207,1766436655145,-800.0,0.00022,8]
[399525208,1766436655155,-367884.64923583,0.00022,4]
[399525209,1766436655164,-4549.74,0.00022,7]
[399525210,1766436655174,-877.28,0.00022,14]
[399525211,1766436655185,-153.05,0.00022,2]
[399525212,1766436655196,-5765.0563739,0.00022129,2]
[399525213,1766436655207,-5041.8955319,0.00022129,2]
[399525214,1766436655217,-2972.2,0.00022148,2]
[399525215,1766436655227,-598.34669379,0.00022477,2]
[399525216,1766436655238,-630.0,0.000225,30]
[399525217,1766436655248,-24470.083785,0.000226,5]
[399525218,1766436655258,-151.0,0.000226,2]
[399525219,1766436655267,-151.0,0.000226,2]
[399525220,1766436655277,-151.0,0.000226,2]
[399525221,1766436655287,-151.0,0.000226,2]
[399525222,1766436655297,-151.0,0.000226,2]
[399525223,1766436655307,-151.0,0.000226,2]
[399525224,1766436655316,-151.0,0.000226,2]
[399525225,1766436655326,-151.0,0.000226,2]
[399525226,1766436655336,-151.0,0.000226,2]
[399525227,1766436655346,-151.0,0.000226,2]
[399525228,1766436655356,-191.859508,0.000226,2]
[399525229,1766436655366,-191.859508,0.000226,2]
[399525230,1766436655376,-191.859508,0.000226,2]
[399525231,1766436655386,-191.859508,0.000226,2]
[399525232,1766436655395,-151.0,0.000226,2]
[399525233,1766436655405,-151.0,0.000226,2]
[399525234,1766436655415,-2282.131091,0.000226,2]
[399525235,1766436655424,-2282.131091,0.000226,2]
[399525236,1766436655434,-2282.131091,0.000226,2]
[399525237,1766436655443,-2282.131091,0.000226,2]
[399525238,1766436655453,-362.325055,0.000226,2]
[399525239,1766436655462,-362.325055,0.000226,2]
[399525240,1766436655472,-520.303541,0.000226,2]
[399525241,1766436655481,-362.325055,0.000226,2]
[399525242,1766436655490,-520.303541,0.000226,2]
[399525243,1766436655500,-520.303541,0.000226,2]
[399525244,1766436655510,-362.325055,0.000226,2]
[399525245,1766436655520,-520.303541,0.000226,2]
[399525246,1766436655529,-151.0,0.000226,2]
[399525247,1766436655538,-416.832707,0.000226,2]
[399525248,1766436655548,-416.832707,0.000226,2]
[399525249,1766436655557,-416.832707,0.000226,2]
[399525250,1766436655567,-416.832707,0.000226,2]
[399525251,1766436655576,-151.0,0.000226,2]
[399525252,1766436655586,-151.0,0.000226,2]
[399525253,1766436655596,-332.60791905,0.00022994,2]
[399525254,1766436655606,-215.32702677,0.00022994,2]
[399525255,1766436655615,-806.0,0.00023,2]
[399525256,1766436655624,-400.0,0.00023,2]
[399525257,1766436655634,-151.0,0.00023,2]
[399525258,1766436655644,-350.9914312,0.0002301,120]
[399525259,1766436655654,-151.84826967,0.00023063,2]
[399525260,1766436655663,-231.28369723,0.00023243,2]
[399525261,1766436655673,-2972.2,0.0002329,2]
[399525262,1766436655683,-1230.51917613,0.00024,2]
[399525263,1766436655692,-151.0,0.00024233,2]
[399525264,1766436655702,-1024.4900209,0.00024233,2]
[399525265,1766436655714,-4549.74,0.000243,7]
[399525266,1766436655724,-344.91441206,0.00024363,2]
[399525267,1766436655734,-644.79446246,0.00024366,2]
[399525268,1766436655744,-691.39774486,0.00024366,2]
[399525269,1766436655755,-804.17102365,0.00024366,2]
[399525270,1766436655764,-2000.0,0.000244,2]
[399525271,1766436655774,-408.066688,0.000244,2]
[399525272,1766436655784,-408.066688,0.000244,2]
[399525273,1766436655795,-408.066688,0.000244,2]
[399525274,1766436655805,-408.066688,0.000244,2]
[399525275,1766436655814,-2972.2,0.00024432,2]
[399525276,1766436655824,-151.0,0.000245,2]
[399525277,1766436655833,-1326.0,0.000245,2]
[399525278,1766436655843,-612.0,0.000245,2]
[399525279,1766436655853,-1855.626,0.000245,2]
[399525280,1766436655863,-1609.0,0.000245,2]
[399525281,1766436655873,-1262.0,0.000245,2]
[399525282,1766436655882,-518.0,0.000245,2]
[399525283,1766436655892,-1198.0,0.000245,2]
[399525284,1766436655902,-911.0,0.000245,2]
[399525285,1766436655911,-2429.0,0.000245,2]
[399525286,1766436655921,-564.0,0.000245,2]
[399525287,1766436655930,-598.34669379,0.00024527,2]
[399525288,1766436655940,-153.05,0.00024591,2]
[399525289,1766436655950,-157.0,0.00024658,2]
[399525290,1766436655960,-157.0,0.00024658,2]
[399525291,1766436655969,-162.81323493,0.00024658,2]
[399525292,1766436655979,-1000.0,0.00024658,2]
[399525293,1766436655989,-833.28,0.00024658,2]
[399525294,1766436655999,-151.0,0.00024658,2]
[399525295,1766436656008,-151.0,0.00024658,2]
[399525296,1766436656018,-155.200561,0.00024658,2]
[399525297,1766436656028,-151.84826967,0.0002471,2]
[399525298,1766436656037,-500.0,0.00024773,2]
[399525299,1766436656048,-500.0,0.00024773,2]
[399525300,1766436656057,-502.18604704,0.00024799,2]
[399525301,1766436656068,-151.0,0.00024799,7]
[399525302,1766436656079,-151.0,0.00024799,7]
[399525303,1766436656089,-151.0,0.000248,7]
[399525304,1766436656099,-151.0,0.000248,7]
[399525305,1766436656117,-151.0,0.000248,7]
[399525306,1766436656127,-177.601844,0.000248,7]
[399525307,1766436656137,-151.0,0.000248,7]
[399525308,1766436656146,-295661.53484052,0.000248,3]
[399525309,1766436656190,-535.3475431,0.000248,3]
[399525310,1766436656202,-886.18999877,0.000248,3]
[399525311,1766436656369,-1012.0,0.00012279,2]
[399525312,1766436656379,-314.0,0.00014523,2]
[399525313,1766436656388,-5984.218129,0.000185,2]
[399525314,1766436656405,-545.781871,0.000185,2]
[399525315,1766436656414,-6530.0,0.000215,2]
[399525316,1766436656424,-6530.0,0.000245,2]
[399525317,1766436656434,-73586.90939043,0.000248,3]
[399525318,1766436656662,-1087.41118798,0.000169,2]
[399525319,1766436656671,-12744.56881202,0.000248,3]
[399525320,1766436656683,-357.44392793,0.000248,3]
[399525321,1766436656698,-791.07285415,0.000248,3]
[399525322,1766436656709,-530.7401906,0.000248,3]
[399525323,1766436656721,-948.69107794,0.000248,3]
[399525333,1766437239665,-188.75196867,0.0001193,2]
[399525334,1766437239813,-168.7067,0.0001193,2]
[399525335,1766437544826,-300.0,0.00011749,2]
[399525336,1766437544866,-1200.0,0.00011749,2]
[399525337,1766437544910,-300.0,0.00011749,2]
[399525338,1766437544957,-500.0,0.0001175,2]
[399525339,1766437544994,-553.0,0.0001175,2]
[399525340,1766437545033,-500.0,0.0001175,2]
[399525341,1766437545071,-150.0,0.0001175,2]
[399525342,1766437545110,-150.0,0.0001175,2]
[399525343,1766437545149,-150.0,0.0001175,2]
[399525344,1766437545177,-300.0,0.0001175,2]
[399525345,1766437545193,-200.0,0.0001175,2]
[399525346,1766437545205,-150.0,0.0001175,2]
[399525347,1766437545215,-150.0,0.0001175,2]
[399525348,1766437545225,-280.7089659,0.0001175,2]
[399525349,1766437545235,-151.61208378,0.0001175,2]
[399525350,1766437545246,-150.0,0.0001175,2]
[399525351,1766437545256,-117.67895032,0.0001175,2]
[399525352,1766437545272,-32.32104968,0.0001175,2]
[399525353,1766437545282,-150.0,0.0001175,2]
[399525354,1766437545292,-117.67895032,0.0001175,2]
[399525355,1766437545309,-32.32104968,0.0001175,2]
[399525356,1766437545319,-150.0,0.0001175,2]
[399525357,1766437545329,-151.41928743,0.0001175,2]
[399525358,1766437545343,-150.0,0.0001175,2]
[399525359,1766437545354,-16.25966289,0.0001175,2]
[399525360,1766437545371,-158.89813747,0.0001175,2]
[399525361,1766437545382,-278.54080878,0.0001175,2]
[399525362,1766437545392,-115.56105375,0.0001175,2]
[399525363,1766437545414,-34.43894625,0.0001175,2]
[399525364,1766437545424,-256.91793341,0.0001175,2]
[399525365,1766437545435,-150.0,0.0001175,2]
[399525366,1766437545445,-58.64312034,0.0001175,2]
[399525367,1766437545457,-150.0,0.0001175,2]
[399525368,1766437545474,-150.0,0.0001175,2]
[399525369,1766437545487,-141.35687966,0.0001175,2]
[399525370,1766437545497,-8.64312034,0.0001175,2]
[399525371,1766437545514,-141.35687966,0.0001175,2]
[399525372,1766437545525,-201.36635016,0.0001175,2]
[399525373,1766437545535,-51.27677018,0.00011777,2]
[399525376,1766437786331,999.0,0.00010959,3]
[399525377,1766437803584,-153.56,0.00010855,2]
[399525381,1766437831814,-503.42733945,0.000108,2]
[399525382,1766437831872,-898.23291632,0.000108,2]
[399525383,1766437831882,-46.44,0.00010855,2]
[399525384,1766437831891,-3868.25992671,0.00010961,2]
[399525385,1766437831907,-575.5876787,0.00010961,2]
[399525386,1766437831918,-1570.17239459,0.00010961,2]
[399525387,1766437831928,-150.0,0.00010977,2]
[399525388,1766437831937,-883.99,0.00011027,2]
[399525389,1766437831948,-1200.0,0.00011055,2]
[399525390,1766437831962,-195.0,0.00011056,2]
[399525391,1766437831972,-250.0,0.00011056,2]
[399525392,1766437831981,-300.0,0.00011083,2]
[399525393,1766437831990,-300.0,0.00011083,2]
[399525394,1766437831999,-4380.36,0.00011084,2]
[399525395,1766437832009,-440.0,0.00011683,2]
[399525396,1766437832019,-185.0,0.00011683,2]
[399525397,1766437832028,-216.05679117,0.00011732,2]
[399525398,1766437832038,-500.0,0.00011739,2]
[399525399,1766437832048,-530.0,0.00011739,2]
[399525400,1766437832057,-500.0,0.00011739,2]
[399525401,1766437832067,-150.0,0.00011739,2]
[399525402,1766437832076,-284.32985892,0.00011739,2]
[399525403,1766437832086,-150.0,0.00011739,2]
[399525404,1766437832095,-150.0,0.00011739,2]
[399525406,1766437832105,-150.0,0.00011739,2]
[399525408,1766437832114,-485.0,0.00011749,2]
[399525410,1766437832125,-500.0,0.00011766,2]
[399525412,1766437832134,-530.0,0.00011766,2]
[399525413,1766437832143,-500.0,0.00011766,2]
[399525414,1766437832152,-150.0,0.00011766,2]
[399525415,1766437832161,-150.0,0.00011766,2]
[399525416,1766437832171,-150.0,0.00011766,2]
[399525417,1766437832180,-150.0,0.00011776,2]
[399525419,1766437832190,-150.0,0.00011777,2]
[399525421,1766437832199,-600.0,0.00011777,2]
[399525423,1766437832209,-150.0,0.00011777,2]
[399525425,1766437832218,-150.0,0.00011777,2]
[399525427,1766437832227,-232.09963481,0.00011777,2]
[399525429,1766437832237,-150.0,0.00011777,2]
[399525431,1766437832247,-150.0,0.00011777,2]
[399525433,1766437832256,-165.24498498,0.00011777,2]
[399525435,1766437832266,-500.0,0.00011777,2]
[399525437,1766437832275,-150.0,0.00011777,2]
[399525439,1766437832284,-1387.0,0.00011791,2]
[399525441,1766437832294,-500.0,0.00011794,2]
[399525443,1766437832303,-530.0,0.00011794,2]
[399525444,1766437832313,-500.0,0.00011794,2]
[399525446,1766437832323,-250.0,0.00011794,2]
[399525448,1766437832332,-250.0,0.00011794,2]
[399525450,1766437832341,-150.0,0.00011794,2]
[399525452,1766437832351,-150.0,0.00011805,2]
[399525454,1766437832360,-150.0,0.00011805,2]
[399525456,1766437832369,-204.41502637,0.00011805,2]
[399525458,1766437832378,-215.5420525,0.00011805,2]
[399525460,1766437832387,-150.0,0.00011805,2]
[399525462,1766437832396,-346.80173823,0.00011805,2]
[399525464,1766437832406,-150.0,0.00011805,2]
[399525466,1766437832418,-500.0,0.00011821,2]
[399525468,1766437832427,-500.0,0.00011821,2]
[399525470,1766437832436,-530.0,0.00011821,2]
[399525472,1766437832445,-500.0,0.00011821,2]
[399525473,1766437832456,-150.0,0.00011821,2]
[399525474,1766437832465,-105113.50103287,0.0001183,2]
[399525475,1766437832479,-90368.14438292,0.0001183,2]
[399525476,1766437832490,-4351.4977131,0.0001183,2]
[399525477,1766437832501,-572.0678,0.0001183,2]
[399525478,1766437832512,-11027.70687805,0.0001183,2]
[399525479,1766437832524,-724.37785151,0.0001183,2]
[399525480,1766437832535,-546.54497025,0.0001183,2]
[399525481,1766437832547,-562.249999,0.0001183,2]
[399525482,1766437837884,-282.30440493,0.00011829,2]
[399525483,1766437837893,-500.0,0.00011829,2]
[399525484,1766437837903,-500.0,0.00011829,2]
[399525485,1766437837912,-500.0,0.00011829,2]
[399525486,1766437837921,-500.0,0.00011829,2]
[399525487,1766437837931,-500.0,0.00011829,2]
[399525488,1766437837940,-500.0,0.00011829,2]
[399525489,1766437837950,-500.0,0.00011829,2]
[399525490,1766437837960,-594.37309426,0.00011829,2]
[399525491,1766437837970,-500.0,0.00011829,2]
[399525492,1766437837979,-500.0,0.00011829,2]
[399525493,1766437837989,-500.0,0.00011829,2]
[399525494,1766437837999,-500.0,0.00011829,2]
[399525495,1766437838008,-500.0,0.00011829,2]
[399525496,1766437838018,-500.0,0.00011829,2]
[399525497,1766437838027,-500.0,0.00011829,2]
[399525498,1766437838037,-500.0,0.00011829,2]
[399525499,1766437838046,-500.0,0.00011829,2]
[399525500,1766437838056,-500.0,0.00011829,2]
[399525501,1766437838066,-500.0,0.00011829,2]
[399525502,1766437838076,-500.0,0.00011829,2]
[399525503,1766437838086,-500.0,0.00011829,2]
[399525504,1766437838096,-500.0,0.00011829,2]
[399525505,1766437838108,-400.0,0.00011829,2]
[399525506,1766437838118,-500.0,0.00011829,2]
[399525507,1766437838128,-500.0,0.00011829,2]
[399525508,1766437838137,-500.0,0.00011829,2]
[399525509,1766437838148,-500.0,0.00011829,2]
[399525510,1766437838157,-500.0,0.00011829,2]
[399525511,1766437838170,-500.0,0.00011829,2]
[399525512,1766437838180,-500.0,0.00011829,2]
[399525513,1766437838190,-500.0,0.00011829,2]
[399525514,1766437838199,-500.0,0.00011829,2]
[399525515,1766437838209,-500.0,0.00011829,2]
[399525517,1766437838219,-500.0,0.00011829,2]
[399525518,1766437838229,-500.0,0.00011829,2]
[399525519,1766437838239,-786733.9093723,0.0001183,2]
[399525520,1766437838249,-2650.5986,0.00011832,2]
[399525521,1766437838259,-150.0,0.00011832,2]
[399525523,1766437838269,-150.0,0.00011832,2]
[399525525,1766437838280,-150.0,0.00011832,2]
[399525526,1766437838290,-168.26252141,0.00011832,2]
[399525527,1766437838300,-500.0,0.00011849,2]
[399525528,1766437838310,-530.0,0.00011849,2]
[399525529,1766437838319,-500.0,0.00011849,2]
[399525530,1766437838329,-150.0,0.00011849,2]
[399525531,1766437838339,-250.0,0.0001186,2]
[399525532,1766437838349,-150.0,0.0001186,2]
[399525533,1766437838358,-152.83861574,0.0001186,2]
[399525534,1766437838368,-500.0,0.00011876,2]
[399525535,1766437838378,-530.0,0.00011876,2]
[399525536,1766437838387,-500.0,0.00011876,2]
[399525537,1766437838397,-250.0,0.00011876,2]
[399525538,1766437838406,-201.31035432,0.00011887,2]
[399525539,1766437838419,-500.0,0.00011903,2]
[399525540,1766437838429,-530.0,0.00011903,2]
[399525541,1766437838439,-500.0,0.00011903,2]
[399525542,1766437838450,-150.99,0.0001193,2]
[399525543,1766437838462,-6129.97,0.0001193,2]
[399525544,1766437838472,-150.99,0.0001193,2]
[399525545,1766437838483,-879.9,0.0001193,2]
[399525546,1766437838495,-9999.99,0.0001193,2]
[399525547,1766437838504,-5689.35,0.0001193,2]
[399525548,1766437838514,-347.7188,0.0001193,2]
[399525549,1766437838524,-500.0,0.00011931,2]
[399525550,1766437838534,-530.0,0.00011931,2]
[399525551,1766437838548,-500.0,0.00011931,2]
[399525552,1766437838558,-13731.73925556,0.00011931,2]
[399525553,1766437838568,-1353.14,0.00011931,2]
[399525554,1766437838578,-1358.3835,0.00011932,2]
[399525555,1766437838588,-2756.9178,0.00011932,2]
[399525556,1766437838598,-4692.8104,0.00011932,2]
[399525557,1766437838608,-2500.0,0.00011932,2]
[399525558,1766437838618,-1434.2860293,0.00011932,2]
[399525559,1766437838628,-7652.186,0.00011932,2]
[399525560,1766437838638,-477.489,0.00011932,2]
[399525561,1766437838648,-250.0,0.0001194,2]
[399525562,1766437838658,-14112.18182599,0.00011951,2]
[399525563,1766437838668,-27138.59962192,0.00011951,2]
[399525564,1766437838678,-191.44852268,0.00011958,2]
[399525565,1766437838691,-530.0,0.00011958,2]
[399525566,1766437838701,-405.36136932,0.00011958,2]
[399525567,1766437838712,-530.0,0.00011986,2]
[399525568,1766437838722,-702.0,0.00011989,2]
[399525569,1766437838732,-530.0,0.00012013,2]
[399525570,1766437838743,-151.0,0.00012024,2]
[399525571,1766437838752,-151.0,0.00012024,2]
[399525572,1766437838762,-151.0,0.00012024,2]
[399525573,1766437838771,-151.0,0.00012024,2]
[399525574,1766437838781,-151.0,0.00012024,2]
[399525575,1766437838790,-151.0,0.00012024,2]
[399525576,1766437838801,-151.0,0.00012024,2]
[399525577,1766437838812,-151.0,0.00012024,2]
[399525578,1766437838821,-151.0,0.00012024,2]